Cogmind - Beta 14 @@@ ROGUE MODE // 2024.09.28 @ 16:48:33 // Winter2022/Polymind Player: LEWiKK Result: Destroyed by G-34 Mercenary with Small Laser Performance ------------- Evolutions (1) 500 Regions Visited (4) 800 Robots Destroyed (5) 25 Value Destroyed (214) 214 Prototype IDs (0) 0 Alien Tech Used (0) 0 Bonus (2351) 2351 TOTAL SCORE: 3460 Bonus ------- Polymind Skill 2054 Pacifist 200 High Alert Combat Kills 11 Follower Combat Kills 86 Cogmind --------- Core Integrity 0/400 Matter 0/0 Energy 192/200 System Corruption 2% Temperature Cool (6) Movement Walking (120) Location -9/Storage Parts ------- > --- POWER (1) -------- Ion Engine > --- PROPULSION (2) --- Aluminum Leg Aluminum Leg > --- UTILITY (1) ------ Heat Sink > --- WEAPON (1) ------- Small Laser > --- INVENTORY (1) ---- (None) Peak State ------------ > --- POWER ------------ Improved Ion Engine > --- PROPULSION ------- Light Treads Light Treads > --- UTILITY ---------- Heat Sink Heat Sink Light Armor Plating > --- WEAPON ----------- Beam Rifle Heavy Assault Rifle > --- INVENTORY -------- (None) [Rating: 11] Favorites ----------- Power Light Ion Engine Engine Light Ion Engine Propulsion Wheel Treads Light Treads Leg Aluminum Leg Wheel Wheel Utility Medium Matter Pod Device Heat Sink Storage Medium Matter Pod Protection Light Armor Plating Weapon Beam Rifle Energy Gun Beam Rifle Ballistic Gun Heavy Assault Rifle Build | -11 -10 -10 -9 -9 ------- Run | Yrd Mat Min Mat Sto Slots Evolved . | . . . . . Power . | . . . . . Propulsion . | . . . . . Utility . | . . . . . Weapon . | . . . . . Parts Attached . | . . . . . Power . | . . . . . Engine . | . . . . . Core . | . . . . . Reactor . | . . . . . Propulsion . | . . . . . Treads . | . . . . . Leg . | . . . . . Wheel . | . . . . . Hover . | . . . . . Flight . | . . . . . Utility . | . . . . . Device . | . . . . . Storage . | . . . . . Processor . | . . . . . Hackware . | . . . . . Protection . | . . . . . Artifact . | . . . . . Weapon . | . . . . . Energy Gun . | . . . . . Energy Cannon . | . . . . . Ballistic Gun . | . . . . . Ballistic Cannon . | . . . . . Launcher . | . . . . . Special Weapon . | . . . . . Impact Weapon . | . . . . . Slashing Weapon . | . . . . . Piercing Weapon . | . . . . . Special Melee Weapon . | . . . . . Unidentified Prototypes . | . . . . . Parts Lost 7 | . . . . 7 Power 1 | . . . . 1 Propulsion 3 | . . . . 3 Utility 2 | . . . . 2 Weapon 1 | . . . . 1 Highest Loss Streak 6 | . . . . 6 To Critical Strikes . | . . . . . Average Slot Usage (%) 74 | . . 76 80 76 Engine 17 | . . 19 20 16 Treads 1 | . . . . 3 Leg 3 | . . . . 7 Wheel 30 | . . 38 40 23 Device 3 | . . . . 7 Storage 15 | . . 19 20 12 Energy Gun 2 | . . . . 4 Peak Build Rating 11 | . . 4 4 11 Average Rating 4 | . . 3 4 4 On Entrance 1 | . . . 4 4 Naked Turns 86 | . 32 26 . 28 Heaviest Build 18 | . . 5 5 18 Greatest Support 40 | 3 3 20 20 40 Greatest Overweight (x) . | . . . . . Average Overweight (x) . | . . . . . Largest Inventory Capacity 4 | . . 1 1 4 Average Capacity 1 | . . . 1 1 Most Carried 4 | . . . . 4 Average Carried . | . . . . . Final Capacity 1 | . . 1 1 1 Final Carried . | . . . . . Class Distribution -------------------- 72% | Worker 8% | Grunt 8% | Cogmind 6% | Sentry 4% | Recycler Dominant Class ---------------- Cogmind | -10/Materials Worker | -10/Mines Worker | -9/Materials Worker | -9/Storage Resources | -11 -10 -10 -9 -9 ----------- Run | Yrd Mat Min Mat Sto Matter Collected 41 | . . 41 . . Remotely . | . . . . . Salvage Created 369 | . . . . 369 Parts 11 | . . . . 11 Haulers Intercepted . | . . . . . Recyclers Shooed . | . . . . . Parts Field Recycled . | . . . . . Retrieved Matter . | . . . . . Parts Self-Destructed . | . . . . . Prevented . | . . . . . Kills | -11 -10 -10 -9 -9 ------- Run | Yrd Mat Min Mat Sto Combat Hostiles Destroyed 5 | . . . . 5 Guns 5 | . . . . 5 Classes Destroyed 2 | . . . . 2 Grunt 1 | . . . . 1 Sentry 4 | . . . . 4 Best Kill Streak 3 | . . . . 3 Combat Bots Only 3 | . . . . 3 Max Kills in Single Turn 1 | . . . . 1 Gunslinging . | . . . . . Exploded . | . . . . . Melee . | . . . . . Uniques/NPCs Destroyed . | . . . . . Combat | -11 -10 -10 -9 -9 -------- Run | Yrd Mat Min Mat Sto Hostile Shots Fired 132 | . 3 . . 129 Missed 25 | . 1 . . 24 Damage Taken 1364 | . 16 . . 1348 Core 423 | . 16 . . 407 Absorbed by Shields . | . . . . . Core Remaining (%) 96 | 100 . 93 . . Volleys Fired 32 | . . . . 32 Largest 2 | . . . . 2 Hottest 79 | . . . . 79 Shots Fired 40 | . . . . 40 Gun 40 | . . . . 40 Cannon . | . . . . . Launcher . | . . . . . Special . | . . . . . Kinetic 8 | . . . . 8 Thermal 32 | . . . . 32 Explosive . | . . . . . Electromagnetic . | . . . . . Robot Hit Streak 9 | . . . . 9 Robot Miss Streak 2 | . . . . 2 Penetration Max . | . . . . . Secondary Targets . | . . . . . Shots Hit Robots 32 | . . . . 32 Core Hits 14 | . . . . 14 Critical Kills . | . . . . . Critical Parts Destroyed . | . . . . . Critical Strikes 2 | . . . . 2 Burn 2 | . . . . 2 Melee Attacks . | . . . . . Impact . | . . . . . Slashing . | . . . . . Piercing . | . . . . . Sneak Attacks . | . . . . . Combat Hostiles . | . . . . . Follow-up Attacks . | . . . . . Damage Inflicted 476 | . . . . 476 Guns 466 | . . . . 466 Cannons . | . . . . . Explosions . | . . . . . Melee . | . . . . . Ramming 10 | . . . . 10 Kinetic 104 | . . . . 104 Thermal 362 | . . . . 362 Explosive . | . . . . . Electromagnetic . | . . . . . Impact . | . . . . . Slashing . | . . . . . Piercing . | . . . . . Highest Corruption 2 | . . . . 2 Average Corruption 2 | . . . . 2 Corruption Purged . | . . . . . Corruption Blocked . | . . . . . Overload Shots . | . . . . . Overflow Damage . | . . . . . Projectiles . | . . . . . Explosions . | . . . . . Melee . | . . . . . Knockbacks . | . . . . . Impact . | . . . . . Kinetic . | . . . . . Secondary . | . . . . . Self-Inflicted Damage 2 | . . . . 2 Shots . | . . . . . Rammed 1 | . . . . 1 Targets Rammed 4 | . . . . 4 Kicked 3 | . . . . 3 Crushed . | . . . . . Highest Temperature 282 | . . . . 282 Average Temperature 92 | . . . . 92 Received Heat Transfer 603 | . . . . 603 Effects 1 | . . . . 1 Energy Bleed 1 | . . . . 1 Siege Activations . | . . . . . Robots Corrupted . | . . . . . Combat Hostiles . | . . . . . Parts Fried . | . . . . . Impact Corruptions . | . . . . . Robots Melted . | . . . . . Combat Hostiles . | . . . . . Parts Melted 2 | . . . . 2 Heat Transferred 932 | . . . . 932 Parts Sabotaged . | . . . . . Parts Stolen . | . . . . . Parts Stripped . | . . . . . Power Chain Reactions . | . . . . . Alert | -11 -10 -10 -9 -9 ------- Run | Yrd Mat Min Mat Sto Peak Influence 434 | . 60 23 . 434 Initial 23 | . . 23 . . Average 85 | . 21 19 . 158 Maximum Alert Level 2 | . . . . 2 Low Security (%) 81 | . 100 100 100 61 Level 1 11 | . . . . 23 Level 2 7 | . . . . 15 Level 3 . | . . . . . Level 4 . | . . . . . Level 5 . | . . . . . High Security . | . . . . . Max Security . | . . . . . Squads Dispatched 2 | . . . . 2 Investigation . | . . . . . Extermination . | . . . . . Reinforcement 2 | . . . . 2 Assault . | . . . . . Garrison . | . . . . . Intercept . | . . . . . Searches Triggered . | . . . . . Construction Impeded . | . . . . . Haulers Reinforced . | . . . . . Active Scanning Responses . | . . . . . Cargo Convoy Interrupts . | . . . . . Stealth | -11 -10 -10 -9 -9 --------- Run | Yrd Mat Min Mat Sto Distress Signals 4 | . 1 . . 3 Communications Jammed . | . . . . . Distress Signals . | . . . . . Times Spotted 29 | . 4 . . 25 Peak Tracking Total 10 | . 6 . . 10 Tactical Retreats 1 | . 1 . . . Traps | -11 -10 -10 -9 -9 ------- Run | Yrd Mat Min Mat Sto Traps Triggered . | . . . . . Indirectly . | . . . . . Trap Hack Attempts . | . . . . . Triggered . | . . . . . Disarmed . | . . . . . Reprogrammed . | . . . . . Reused . | . . . . . Traps Extracted . | . . . . . Installed . | . . . . . Triggered . | . . . . . Machines | -11 -10 -10 -9 -9 ---------- Run | Yrd Mat Min Mat Sto Machines Disabled . | . . . . . Max in Single Turn . | . . . . . Machines Repaired . | . . . . . Machines Dismantled . | . . . . . Machines Sabotaged . | . . . . . Overloaded Fab Kills . | . . . . . Hacking | -11 -10 -10 -9 -9 --------- Run | Yrd Mat Min Mat Sto Machines Accessed 1 | . . . . 1 Terminals . | . . . . . Fabricators . | . . . . . Repair Stations 1 | . . . . 1 Recycling Units . | . . . . . Scanalyzers . | . . . . . Garrison Access . | . . . . . Total Hacks 3 | . . . . 3 Successful . | . . . . . Failed 3 | . . . . 3 Catastrophic 1 | . . . . 1 Database Lockouts . | . . . . . Manual . | . . . . . Terminals . | . . . . . Fabricators . | . . . . . Repair Stations 3 | . . . . 3 Recycling Units . | . . . . . Scanalyzers . | . . . . . Garrison Access . | . . . . . Terminal Hacks . | . . . . . Fabricator Hacks . | . . . . . Repair Station Hacks . | . . . . . Recycling Unit Hacks . | . . . . . Scanalyzer . | . . . . . Garrison Access Hacks . | . . . . . Unauthorized Hacks . | . . . . . Terminals . | . . . . . Fabricators . | . . . . . Repair Stations . | . . . . . Recycling Units . | . . . . . Scanalyzers . | . . . . . Garrison Access . | . . . . . Data Cores Recovered . | . . . . . Used . | . . . . . Hacking Detections 1 | . . . . 1 Full Trace Events 1 | . . . . 1 Feedback Events . | . . . . . Feedback Blocked . | . . . . . Robot Schematics Acquired . | . . . . . Robots Built . | . . . . . Authchips . | . . . . . Time . | . . . . . Total Robot Build Rating . | . . . . . Part Schematics Acquired . | . . . . . Parts Built . | . . . . . Authchips . | . . . . . Time . | . . . . . Total Part Build Rating . | . . . . . Parts Repaired . | . . . . . Time . | . . . . . Parts Recycled . | . . . . . Recycled Matter . | . . . . . Retrieved Matter . | . . . . . Retrieved Components . | . . . . . Parts Scanalyzed . | . . . . . Part Schematics Acquired . | . . . . . Parts Damaged . | . . . . . Bothacking | -11 -10 -10 -9 -9 ------------ Run | Yrd Mat Min Mat Sto Used RIF Installer . | . . . . . Robots Hacked 3 | . . . . 3 Non-combat 1 | . . . . 1 Combat 2 | . . . . 2 Robot Hacks Applied 5 | . . . . 5 find_recycling 1 | . . . . 1 find_shortcuts 2 | . . . . 2 find_garrison 2 | . . . . 2 Relay Couplers Released . | . . . . . Fabnet Peak Effective % . | . . . . . Robots Rewired 1 | . . . . 1 Allies Hacked . | . . . . . Hacks Repelled . | . . . . . Allies | -11 -10 -10 -9 -9 -------- Run | Yrd Mat Min Mat Sto Total Allies 11 | . . 1 . 10 Largest Group 10 | . . 1 . 10 Highest-Rated Group 88 | . . 31 . 88 Highest-Rated Ally 31 | . . 31 . 16 Total Orders . | . . . . . Ally Attacks 38 | . . . . 38 Total Damage 270 | . . . . 270 Kills 6 | . . . . 6 Allies Corrupted . | . . . . . Allies Melted . | . . . . . Intel | -11 -10 -10 -9 -9 ------- Run | Yrd Mat Min Mat Sto Robot Analysis Total 4 | . . 1 . 3 Derelict Logs Recovered 2 | . . 2 . . Drone Launches . | . . . . . Drone Recoveries . | . . . . . Exploration | -11 -10 -10 -9 -9 ------------- Run | Yrd Mat Min Mat Sto Turns Passed 1021 | . 32 459 37 493 Spaces Moved 1161 | 1 64 593 47 456 Core 156 | 1 64 50 . 41 Treads 2 | . . . . 2 Legs 35 | . . . . 35 Wheels 968 | . . 543 47 378 Hover . | . . . . . Flight . | . . . . . Fastest Speed 50 | 50 50 50 80 50 Average Speed 78 | 50 50 77 80 82 Slowest Speed 160 | 50 50 80 80 160 Overloaded Moves . | . . . . . Propulsion Burnouts . | . . . . . Robots Hopped . | . . . . . Cave-ins Triggered . | . . . . . Exploration Rate (%) 31 | 1 22 84 8 43 Regions Visited 4 Branch Regions 2 Pre-discovered Areas . | . . . . . Known Exits Taken . | . . . . . Unknown Exits Taken 4 | 1 1 1 1 . Scrap Searched 1 | . . 1 . . Spaces Dug . | . . . . . Terrain Destroyed . | . . . . . Melee . | . . . . . Projectile . | . . . . . AOE . | . . . . . Terrain Rammed . | . . . . . Walls Destroyed . | . . . . . Machines Disabled . | . . . . . Actions | -11 -10 -10 -9 -9 --------- Run | Yrd Mat Min Mat Sto Total 1234 | . 63 592 46 533 Wait 35 | . . . . 35 Move 1157 | . 63 592 46 456 Hop . | . . . . . Pick Up 1 | . . . . 1 Fast Attach . | . . . . . Attach . | . . . . . Detach . | . . . . . Swap . | . . . . . Drop . | . . . . . Fire 32 | . . . . 32 Melee . | . . . . . Ram 1 | . . . . 1 Kick 3 | . . . . 3 Crush . | . . . . . Escape Stasis . | . . . . . Rewire 5 | . . . . 5 Trap . | . . . . . Miscellaneous . | . . . . . Route ------- -11/Scrapyard -10/Materials -10/Mines -9/Materials -9/Storage History --------- Turn | Location | Event 1 | -11/Scrapyard | Discovered new exit (range 0) 1 | -11/Scrapyard | Entered Materials 29 | -10/Materials | Discovered new exit (range 9) 33 | -10/Materials | Entered Mines 45 | -10/Mines | Met a Derelict bent on vengeance 122 | -10/Mines | Received a Rocket Launcher from a helpful Derelict 143 | -10/Mines | Learned Materials terminal intel 351 | -10/Mines | Learned Materials emergency access door positions 417 | -10/Mines | Received a Mining Laser from a helpful Derelict 479 | -10/Mines | Discovered new exit (range 10) 492 | -10/Mines | Entered Materials 494 | -9/Materials | Loaded intel: 12 terminal locations 519 | -9/Materials | Discovered new exit (range 14) 529 | -9/Materials | Entered Storage 918 | -9/Storage | Core integrity fell below 50% 974 | -9/Storage | Core integrity fell below 20% 984 | -9/Storage | Assisted by bots powering up and referring to "LRC-V3" 993 | -9/Storage | Lost 6 parts (1p2n2u1w) 1022 | -9/Storage | Destroyed by G-34 Mercenary with Small Laser Last Messages --------------- Mercenary 2a suffers critical hit (Burn). Acquired 4 Protomatter. Mercenary 2a suffers critical hit (Burn). Mercenary 2a destroyed. Acquired 6 Protomatter. K-01 Serf collects debris. Y-45 Defender destroyed. K-01 Serf collects debris. R-06 Scavenger collects Flight Unit. W-16 Scout sends out distress signal. K-01 Serf collects debris. R-06 Scavenger collects Hvy. Assault Rifle. R-06 Scavenger collects Lgt. Treads. K-01 Serf collects debris. G-34 Mercenary destroyed. R-06 Scavenger collects Aluminum Leg. Acquired 10 Protomatter. K-01 Serf collects debris. Mercenary 2b destroyed. K-01 Serf collects debris. Map ----- +----------------------------------------------------+ | # ## # """ # ^^ | | # ## # """ ###+#+###################+##### | | # ## # """ ## #????????????????????# | | # ## # ## #????????????????????# | | # #####+#####+###### #????????????????????# | | + #????# #????????????????????# | | # #????# #????????????????????# | | # =! "#????# #????????????????????# | | ##+##! T#????# #????????????????????# | | # "#????# #????????????????????# | | # #????# #????????????????????# | | + +????# #????????????????????# | | # ##+#######????# #????????????????????? | | # ## = #??????#########????????????????????? | | # ## #########???????????????????????????? | | ##### ## % ## = #???????????????????????????? | | "" ## ## !! ##[%""" ##??????????????????????????? | | R" # ###"####%!""" T#??????????????????????????? | | " /% / """ ##??????????????????????????? | | %# ###### # #??????#######??????????????? | | ## ##????# # #??????# #??????????????? | | ## ## #?????# ########??????# #??????????????? | | #####/#####?# #?????????????#*%[ T#??????????????? | | # ### ###???????????##[%*##??? +?????????? | | " # ##############g##### #?????????? | | T%= # g g g*=k r #?????????? | | "== + k ggg==g% #?????????? | | #=% """ # w g%[ * #?????????? | | % "" # ####################a #?????????? | | #% """ #######???????????????????? #?????????? | | # #?????????????????[[[??????? #?????????? | | ###########?????????????????[[???????????????????? | | ????????????????????????????[????????????????????? | | ?????????????????????????????????????????????????? | | ?????????????????????????????????????????????????? | | ?????????????????????????????????????????????????? | | ?????????????????????????????????????????????????? | | ?????????????????????????????????????????????????? | | ?????????????????????????????????????????????????? | | ?????????????????????????????????????????????????? | | ?????????????????????????????????????????????????? | | ?????????????????????????????????????????????????? | | ?????????????????????????????????????????????????? | | ?????????????????????????????????????????????????? | | ?????????????????????????????????????????????????? | | ?????????????????????????????????????????????????? | | ?????????????????????????????????????????????????? | | ?????????????????????????????????????????????????? | | ?????????????????????????????????????????????????? | | ?????????????????????????????????????????????????? | +----------------------------------------------------+ Best States ------------- Heat Dissipation 36 Energy Generation 17 Energy Capacity 215 Matter Stores 97 Matter Capacity 125 Sight Range 16 Terrain Scan Density 10 Armor Coverage 150 Resistance: EX 50 Resistance: I 25 Evasion (%) 50 Recoil Reduction 2 Item Schematics ----------------- None Robot Schematics ------------------ None Fabricated ------------ Nothing Alien Tech Used ----------------- None Achievements -------------- None Challenges ------------ None Polymind | -11 -10 -10 -9 -9 ---------- Run | Yrd Mat Min Mat Sto Hosts 5 | . . 1 . 4 Combat Hostiles 2 | . . . . 2 Allies 1 | . . . . 1 Unique Host Classes 4 | . . 1 . 3 Average Host Suspicion 29 | . . 4 10 53 Unsuspicious Activity 950 | . . 377 39 534 Returns to Shadow . | . . . . . Fuzzy Dispatches . | . . . . . Protomatter Created 38 | . . . . 38 Used 52 | . . 5 . 47 Decayed . | . . . . . Highest Spend 23 | . . 5 . 23 Top 5 Hosts by Kills: Y-45 Defender (-9/Storage: 3) G-34 Mercenary (-9/Storage: 1) Mercenary 2f (-9/Storage: 1) Game ------ Seed NavigationMiningShield Manual? 0 Play Time 00:15:20 Cumulative 68.9 hours Start 2024.09.28 @ 16:36:02 End 2024.09.28 @ 16:48:33 Sessions 1 Manual Loads 0 Difficulty Rogue Special Mode Winter2022/Polymind Game No. 70 Rogue 70 Adventurer 0 Explorer 0 Win Type - Total 2 Types 1/0/0/1/0/0/0/0/0 Lore% 50 Gallery% 41 Achievement% 41 Wizard Run 0 Options --------- Layout 1 ASCII 0 Keyboard 1 Movement Numpad Keybinds 0 Fullscreen 2 Font 20/SmallcapsGlow Map View 54x42 Zoom Use 0% Tactical HUD 0 Map Filters NONE Filters NONE Steam 1 RUN: 0d4d02f4-167a-4752-b31b-899c35f41705